bitfinex/quotes_ETHUSD_20250724
["timestamp","ask_amount","ask_price","bid_price","bid_amount"]
[1753344752091,0.04,3633.9,3633.6,4.75252091]
[1753344752292,0.04,3633.9,3633.6,0.02752091]
[1753344752491,0.2618,3633.8,3632.8,2.020059]
[1753344752693,0.04,3633.9,3633.4,2.75221138]
[1753344752893,0.04,3633.9,3632.9,4.724]
[1753344752894,0.04,3633.9,3632.9,2.75262187]
[1753344753097,0.04,3633.9,3633.0,4.721]
[1753344753681,0.817,3633.8,3632.8,2.020059]
[1753344753877,2.75262187,3632.9,3632.8,2.020059]
[1753344754105,3.01442187,3632.9,3632.8,2.020059]
[1753344754771,3.57225689,3633.0,3632.8,2.020059]
[1753344754966,0.8197,3633.0,3632.8,2.020059]
[1753344755385,0.7634,3633.5,3632.9,0.02752621]
[1753344756283,0.04,3633.9,3633.4,2.75224307]
[1753344756483,0.04,3633.9,3633.7,2.75201112]
[1753344756692,0.04,3633.9,3633.5,4.721]
[1753344756871,0.2618,3633.8,3633.5,4.721]
[1753344757066,0.2618,3633.7,3632.8,2.020059]
[1753344757310,0.2618,3633.7,3632.9,4.719]
[1753344757610,0.2618,3633.7,3632.8,2.020059]
[1753344757771,2.75262187,3632.9,3632.8,2.020059]
[1753344757972,0.8315,3633.1,3632.8,2.020059]
[1753344758210,2.75262187,3632.9,3632.8,2.020059]
[1753344758377,3.21222187,3632.9,3632.8,2.020059]
[1753344759135,0.8315,3633.1,3632.8,2.020059]
[1753344759491,2.75256074,3633.0,3632.8,2.020059]
[1753344759825,3.21222187,3632.9,3632.8,2.020059]
[1753344759989,2.75262187,3632.9,3632.8,2.020059]
[1753344760173,3.21222187,3632.9,3632.8,2.157659]
[1753344761072,0.4596,3633.6,3632.8,2.020059]
[1753344761188,0.7722,3633.4,3632.8,2.020059]
[1753344761394,2.75254161,3633.1,3632.8,2.020059]
[1753344761613,0.4596,3633.0,3632.8,2.020059]
[1753344761814,3.98409476,3633.4,3632.8,2.020059]
[1753344761980,3.21191955,3633.3,3632.8,2.020059]
[1753344762182,0.7722,3633.4,3632.9,2.75262063]
[1753344762478,0.7722,3633.4,3632.9,2.78014808]
[1753344762718,0.7722,3633.4,3632.9,2.75262187]
[1753344763015,1.2318,3633.4,3632.8,4.77273107]
[1753344763214,1.2318,3633.4,3632.8,4.7727352]
[1753344763389,1.2318,3633.4,3632.8,2.020059]
[1753344763595,0.4596,3633.3,3632.8,2.020059]
[1753344763792,2.75252583,3633.1,3632.8,2.020059]
[1753344764091,0.8209,3633.2,3632.8,2.020059]
[1753344764422,0.8209,3633.2,3633.0,2.75247319]
[1753344764594,0.8209,3633.2,3633.1,2.75247034]
[1753344764982,0.8209,3633.2,3632.9,2.75262187]
[1753344764983,0.4616,3633.7,3632.9,2.7525474]
[1753344765183,0.4616,3633.7,3633.1,2.75240402]
[1753344765397,0.4616,3633.7,3633.1,2.75245762]
[1753344765592,0.4616,3633.7,3632.8,2.020059]
[1753344765803,0.4616,3633.7,3632.9,4.709]
[1753344766132,0.4616,3633.7,3633.2,2.75234172]
[1753344766331,0.4616,3633.7,3633.2,2.75238645]
[1753344766485,0.97335307,3633.7,3633.3,4.704]
[1753344766824,0.4596,3633.6,3632.8,2.020059]
[1753344767115,0.97135307,3633.5,3632.9,4.72952621]
[1753344767318,0.97135307,3633.5,3633.2,2.75233621]
[1753344767521,8.6928462,3633.3,3632.8,2.020059]
[1753344767682,1.82103718,3633.2,3632.8,2.020059]
[1753344767883,0.4596,3633.2,3632.8,2.020059]
[1753344768081,0.2559,3633.1,3632.8,2.020059]
[1753344768633,0.50878828,3633.0,3632.8,2.020059]
[1753344768839,0.2559,3632.9,3632.8,2.020059]
[1753344769538,1.49025567,3632.9,3632.8,2.020059]
[1753344769742,1.49184384,3632.9,3632.8,2.020059]
[1753344769920,1.23594384,3632.9,3632.8,2.020059]
[1753344770436,0.51037645,3632.9,3632.8,2.020059]
[1753344770843,0.51037645,3632.9,3632.8,2.157659]
[1753344772540,0.51037645,3632.9,3632.8,0.66944472]
[1753344772743,1.49891749,3632.9,3632.8,0.66944472]
[1753344773111,0.51037645,3632.9,3632.8,0.66944472]
[1753344773311,0.76607673,3632.9,3632.8,0.66944472]
[1753344773541,2.2488883,3632.9,3632.8,0.66944472]
[1753344773915,0.76607673,3632.9,3632.8,0.66944472]
[1753344774949,0.51017673,3632.9,3632.8,3.42214236]
[1753344775153,0.25447645,3632.9,3632.8,3.28454236]
[1753344775357,0.25447645,3632.9,3632.8,3.75074236]
[1753344775763,0.002,3633.7,3633.6,2.75209158]
[1753344775940,0.25848012,3633.7,3633.6,2.75209158]
[1753344777017,0.25848012,3633.7,3633.6,7.92381249]
[1753344777217,0.002,3633.7,3633.6,7.89629158]
[1753344780442,1e-08,3633.9,3633.8,2.75194011]
[1753344780641,1e-08,3633.9,3633.8,2.77945951]
[1753344780841,1e-08,3633.9,3633.8,7.62438883]
[1753344781167,0.25684797,3633.9,3633.8,8.09058883]
[1753344781468,1e-08,3633.9,3633.8,8.09058883]
[1753344782167,1e-08,3633.9,3633.8,3.42458883]
[1753344782334,1e-08,3633.9,3633.8,8.11710823]
[1753344782667,1e-08,3633.9,3633.8,3.42458883]
[1753344782870,1e-08,3633.9,3633.8,8.08658883]
[1753344783369,1e-08,3633.9,3633.8,3.42458883]
[1753344783687,0.25674908,3634.6,3634.5,2.75141009]
[1753344783857,0.04,3634.9,3634.8,2.751183]
[1753344784056,0.04,3634.9,3634.8,7.419183]
[1753344784259,0.04,3634.9,3634.8,7.884383]
[1753344784573,0.04,3634.9,3634.8,7.434183]
[1753344784869,0.04,3634.9,3634.8,3.217383]
[1753344785087,0.04,3634.9,3634.8,0.6038]
[1753344785237,0.04,3634.9,3634.8,5.2878]
[1753344785445,0.04,3634.9,3634.8,8.06649483]
[1753344785633,0.04,3634.9,3634.8,8.038983]
[1753344786684,0.04,3634.9,3634.8,0.6038]
[1753344786884,0.04,3634.9,3634.8,8.033983]
[1753344787651,0.04,3634.9,3634.8,3.354983]
[1753344787868,0.04,3634.9,3634.8,8.06149483]
[1753344788067,0.04,3634.9,3634.8,8.033983]
[1753344788290,0.04,3635.9,3635.4,2.75068176]
[1753344788451,1e-08,3636.0,3635.9,2.75035066]
[1753344788649,1e-08,3636.0,3635.9,8.21745066]
[1753344788970,0.004,3636.8,3636.7,2.74974564]
[1753344789175,0.004,3636.8,3636.7,3.54854309]
[1753344789352,0.004,3636.8,3636.7,8.65324564]
[1753344789689,0.8195,3636.7,3636.2,0.20691519]
[1753344789983,0.8195,3635.8,3635.4,4.685]
[1753344790285,2.75050196,3635.7,3635.4,4.685]
[1753344790671,2.75050196,3635.7,3635.4,4.89532145]
[1753344790871,2.75065328,3635.5,3635.4,0.21032145]
[1753344791071,0.7781,3635.4,3634.1,0.04]
[1753344791394,3.78380967,3635.9,3635.1,2.75090081]
[1753344791605,0.7781,3635.9,3635.2,0.0275088]
[1753344791902,0.004,3636.8,3635.2,0.0275088]
[1753344791903,0.25533314,3636.7,3635.3,0.7788]
[1753344792055,0.004,3636.8,3636.7,2.74974564]
[1753344792256,0.004,3636.8,3636.7,7.44474564]
[1753344792457,0.004,3636.8,3636.7,8.10768906]
[1753344792956,0.004,3636.8,3636.7,3.41268906]
[1753344793275,0.004,3636.8,3636.7,8.10668906]
[1753344793789,0.004,3636.8,3636.7,3.41268906]
[1753344794087,0.004,3636.8,3636.7,8.10368906]
[1753344794955,0.004,3636.8,3636.7,8.10068906]
[1753344795156,0.004,3636.8,3636.7,3.41268906]
[1753344795356,0.004,3636.8,3636.7,8.09968906]
[1753344795578,0.004,3636.8,3636.7,3.41268906]
[1753344795777,0.004,3636.8,3636.7,4.89574342]
[1753344796089,0.004,3636.8,3636.7,4.89374342]
[1753344796389,0.004,3636.8,3636.7,8.12518651]
[1753344796589,0.004,3636.8,3636.7,0.66294342]
[1753344796757,0.004,3636.8,3636.7,4.89474342]
[1753344797091,0.004,3636.8,3636.7,4.92224087]
[1753344797389,0.004,3636.8,3636.7,0.20974342]
[1753344797564,0.004,3636.8,3636.7,4.686]
[1753344797770,0.004,3636.8,3636.7,4.685]
[1753344798103,2.75367003,3636.8,3636.7,4.685]
[1753344798268,2.75367003,3636.8,3636.7,4.8226]
[1753344798654,0.004,3636.8,3636.7,4.8186]
[1753344798857,0.004,3636.8,3636.7,4.8176]
[1753344799258,0.004,3636.8,3636.7,0.1376]
[1753344799794,0.004,3636.8,3636.7,7.56834564]
[1753344800892,0.004,3636.8,3636.7,7.56574564]
[1753344801763,0.004,3636.8,3636.7,2.88474564]
[1753344801959,0.004,3636.8,3636.7,4.811]
[1753344802181,0.004,3636.8,3636.7,0.135]
[1753344802692,0.004,3636.8,3636.7,4.805]
[1753344803391,0.004,3636.8,3636.7,7.55474564]
[1753344803582,0.004,3636.8,3636.7,8.80064564]
[1753344803899,0.004,3636.8,3636.7,4.13064564]
[1753344804061,0.004,3636.8,3636.7,8.82714309]
[1753344804389,0.004,3636.8,3636.7,8.79964564]
[1753344804984,1e-08,3637.9,3637.8,2.74891417]
[1753344805161,1e-08,3637.9,3637.8,8.22611417]
[1753344805359,1e-08,3637.9,3637.8,8.67931417]
[1753344806497,1e-08,3637.9,3637.8,4.01431417]
[1753344806682,1e-08,3637.9,3637.8,8.69431417]
[1753344807498,1e-08,3637.9,3637.8,7.42891417]
[1753344807796,1e-08,3637.9,3637.8,7.88211417]
[1753344808090,1e-08,3637.9,3637.8,3.20211417]
[1753344808254,1e-08,3637.9,3637.8,4.677]
[1753344808455,1e-08,3637.9,3637.8,4.676]
[1753344808793,1e-08,3637.9,3637.6,2.74900569]
[1753344808968,1e-08,3637.9,3637.5,6.604]
[1753344809175,1e-08,3637.9,3637.6,4.675]
[1753344809493,1e-08,3637.9,3637.8,2.74891417]
[1753344809693,1e-08,3637.9,3637.8,7.42091417]
[1753344809894,1e-08,3637.9,3637.5,6.604]
[1753344810099,1e-08,3637.9,3637.6,7.41900222]
[1753344810273,1e-08,3637.9,3637.7,4.669]
[1753344810601,1e-08,3637.9,3637.8,3.57331417]
[1753344810801,1e-08,3637.9,3637.8,4.02651417]
[1753344810980,1e-08,3637.9,3637.8,4.05400331]
[1753344811175,1e-08,3638.9,3638.8,2.74815873]
[1753344811403,1e-08,3638.9,3638.8,7.42615873]
[1753344812100,1e-08,3638.9,3638.8,7.87935873]
[1753344812471,1e-08,3638.9,3638.8,7.42615873]
[1753344812873,1e-08,3638.9,3638.8,8.08660246]
[1753344813071,1e-08,3638.9,3638.8,7.63340246]
[1753344814020,1e-08,3638.9,3638.8,7.62540246]
[1753344814225,1e-08,3638.9,3638.8,7.41815873]
[1753344814377,1e-08,3638.9,3638.8,8.07265907]
[1753344814774,1e-08,3638.9,3638.8,8.87905907]
[1753344815018,1e-08,3639.0,3638.9,2.74808321]
[1753344815202,0.04,3639.9,3638.9,2.74808321]
[1753344815203,0.04,3639.9,3639.8,3.5538037]
[1753344815366,0.04,3639.9,3639.8,8.2288037]
[1753344815573,0.04,3639.9,3639.8,8.8196037]
[1753344816407,1e-08,3639.9,3639.8,8.8146037]
[1753344816579,1e-08,3639.9,3639.8,4.1446037]
[1753344816782,1e-08,3639.9,3639.8,8.84807773]
[1753344816981,1e-08,3639.9,3639.8,8.8206037]
[1753344818880,1e-08,3639.9,3639.8,8.8136037]
[1753344819081,1e-08,3639.9,3639.8,4.1446037]
[1753344819281,1e-08,3639.9,3639.8,4.17207773]
[1753344819485,1e-08,3639.9,3639.8,8.83807773]
[1753344819690,1e-08,3639.9,3639.8,8.8106037]
[1753344820906,1e-08,3639.9,3639.8,8.3524037]
[1753344821314,1e-08,3639.9,3639.8,8.2148037]
[1753344821476,1e-08,3639.9,3639.8,8.6637037]
[1753344823819,1e-08,3639.9,3639.3,0.7631]
[1753344824014,1e-08,3639.9,3639.8,2.7474037]
[1753344824222,1e-08,3639.9,3639.8,7.3944037]
[1753344824515,1e-08,3639.9,3639.2,6.6]
[1753344824817,1e-08,3639.9,3639.3,4.65]
[1753344824818,2.74761813,3639.6,3639.3,4.65]
[1753344825026,0.8134,3639.7,3639.3,4.65]
[1753344825228,0.8134,3639.7,3638.9,2.74808321]
[1753344825538,0.8134,3639.7,3639.2,2.74782919]
[1753344825745,0.8134,3639.7,3639.3,4.648]
[1753344826055,0.8134,3639.7,3638.9,2.74802399]
[1753344826198,0.8134,3639.7,3639.0,7.39498267]
[1753344826403,0.8134,3639.7,3639.0,4.647]
[1753344826700,0.8134,3639.7,3639.3,2.74778082]
[1753344826896,0.8134,3639.7,3639.2,2.74783189]
[1753344827102,3.56088607,3639.7,3639.2,4.641]
[1753344827302,3.20286499,3639.6,3639.2,4.641]
[1753344827530,0.4553,3639.6,3639.2,4.641]
[1753344827730,0.8134,3639.7,3639.3,2.74777773]
[1753344828109,1.0735,3639.7,3639.3,4.637]
[1753344828831,1.0735,3639.7,3639.3,7.38476373]
[1753344829134,1.0735,3639.7,3639.3,4.637]
[1753344829536,0.2601,3639.6,3639.2,4.632]
[1753344829940,3.56089027,3639.7,3638.8,0.20644301]
[1753344829941,2.74790413,3639.2,3638.8,0.20644301]
[1753344830234,0.8134,3639.7,3638.8,0.20644301]
[1753344830235,3.56092659,3639.7,3639.0,2.74795215]
[1753344830534,0.8134,3639.7,3638.6,2.74830975]
[1753344830715,2.74763016,3639.5,3638.7,4.63]
[1753344831032,0.2601,3639.6,3638.6,0.20293734]
[1753344831033,0.2601,3639.6,3638.8,2.74814379]
[1753344831260,0.2601,3639.6,3639.4,0.1376]
[1753344831430,2.74755467,3639.6,3639.4,0.1376]
[1753344831598,0.2601,3639.5,3639.4,0.1376]
[1753344832028,3.00773016,3639.5,3639.4,0.1376]
[1753344832209,0.2601,3639.5,3639.4,0.1376]
[1753344833201,3.00773016,3639.5,3639.4,0.1376]
[1753344833715,0.2601,3639.5,3639.4,0.1376]
[1753344834427,3.00773016,3639.5,3639.4,0.1376]
[1753344834932,0.2601,3639.5,3639.4,0.1376]
[1753344835705,3.00773016,3639.5,3639.4,0.1376]
[1753344836641,3.20293016,3639.5,3639.4,0.1376]
[1753344836842,1.53568486,3639.5,3639.4,0.1376]
[1753344837141,4.02703016,3639.5,3639.4,0.1376]
[1753344837307,1.2794,3639.5,3639.4,0.1376]
[1753344837505,4.02703016,3639.5,3639.4,0.1376]
[1753344837712,1.2794,3639.5,3639.4,0.1376]
[1753344837912,0.51262269,3639.8,3639.7,2.74747918]
[1753344838143,1e-08,3639.9,3639.8,2.7474037]
[1753344838330,1e-08,3639.9,3639.0,0.4489]
[1753344838331,1e-08,3639.9,3639.0,5.0599]
[1753344838532,0.4553,3639.8,3638.4,0.4489]
[1753344838759,1e-08,3639.9,3638.7,0.47638234]
[1753344839240,1e-08,3639.9,3639.7,2.74746394]
[1753344839418,1e-08,3639.9,3639.5,0.20324504]
[1753344839623,1e-08,3639.9,3639.6,2.74754092]
[1753344839819,1e-08,3639.9,3639.5,2.74760025]
[1753344840031,1e-08,3639.9,3639.3,2.74772137]
[1753344840222,1e-08,3639.9,3638.9,4.616]
[1753344840436,1e-08,3639.9,3639.5,2.74757715]
[1753344840749,1e-08,3639.9,3639.4,2.74770566]
[1753344841047,1e-08,3639.9,3639.4,2.74764412]
[1753344841355,1e-08,3639.9,3639.5,2.74758259]
[1753344841859,1e-08,3639.9,3639.4,2.74769791]
[1753344842150,1e-08,3639.9,3639.3,2.74774986]
[1753344842317,1e-08,3639.9,3639.4,2.74768576]
[1753344842667,2.74734831,3639.9,3639.3,2.74777527]
[1753344842964,2.74737227,3639.9,3639.2,2.74782641]
[1753344843129,2.74737227,3639.9,3638.9,4.82590645]
[1753344843130,2.7474037,3639.8,3638.9,4.82590645]
[1753344843471,0.45530001,3639.9,3639.1,2.74789137]
[1753344843781,2.74746459,3639.8,3639.2,2.74784891]
[1753344843918,2.74748365,3639.7,3639.0,2.74793386]
[1753344844117,2.74742556,3639.8,3638.9,2.95796583]
[1753344844341,2.74749391,3639.7,3639.1,2.74788019]
[1753344844743,1e-08,3639.9,3639.4,2.74764786]
[1753344844920,1e-08,3639.9,3639.3,2.74770724]
[1753344845262,1e-08,3639.9,3638.9,2.95013104]
[1753344845414,0.13,3639.8,3638.7,5.0529]
[1753344845822,0.13,3639.8,3639.5,2.74757979]
[1753344846349,2.87742158,3639.8,3639.2,2.74784095]
[1753344846620,2.87742158,3639.8,3638.5,2.74935468]
[1753344846621,0.13,3639.8,3639.7,2.74747918]
[1753344847928,1e-08,3639.8,3639.7,4.39790373]
[1753344848752,1e-08,3639.8,3639.7,4.37042894]
[1753344849145,1e-08,3639.8,3639.7,4.53366552]
[1753344849823,1e-08,3639.8,3639.7,4.39790373]
[1753344850434,1e-08,3639.8,3639.7,8.99090373]
[1753344850638,1e-08,3639.8,3639.7,8.96142894]
[1753344850961,1e-08,3639.8,3639.7,4.37042894]
[1753344851158,1e-08,3639.8,3639.7,0.34634976]
[1753344851459,3.52950371,3639.8,3639.7,0.34634976]
[1753344851764,3.95780371,3639.8,3639.7,0.1376]
[1753344851981,16.39089644,3639.8,3639.7,1e-08]
[1753344852178,3.95780371,3639.8,3639.7,1e-08]
[1753344852330,3.95780371,3639.8,3639.7,0.13760001]
[1753344852862,3.95780371,3639.8,3639.7,1e-08]
[1753344853568,3.52950371,3639.8,3639.7,1e-08]
[1753344853888,1e-08,3639.8,3639.7,0.0274748]
[1753344854026,1e-08,3639.8,3639.7,3.20707919]
[1753344854339,1e-08,3639.8,3639.7,8.59045398]
[1753344854667,1e-08,3639.8,3639.7,8.56297919]
[1753344855430,1e-08,3639.8,3639.7,3.96997919]
[1753344855635,1e-08,3639.8,3639.7,8.58645398]
[1753344855861,1e-08,3639.8,3639.7,8.55897919]
[1753344860282,1e-08,3639.8,3639.7,8.54397919]
[1753344861341,1e-08,3639.8,3639.7,3.96997919]
[1753344861647,1e-08,3639.8,3639.7,8.54297919]
[1753344861853,1e-08,3639.8,3639.7,8.54097919]
[1753344862470,1e-08,3639.8,3639.7,8.53797919]
[1753344863476,1e-08,3639.8,3639.7,3.51037919]
[1753344863663,1e-08,3639.8,3639.7,1e-08]
[1753344864043,1e-08,3639.8,3639.7,4.56700001]
[1753344864366,0.42830001,3639.8,3639.7,4.56600001]
[1753344864543,3.17570371,3639.8,3639.7,1e-08]
[1753344866485,0.42830001,3639.8,3639.7,1e-08]
[1753344866686,3.97290371,3639.8,3639.7,1e-08]
[1753344868374,1.22550001,3639.8,3639.7,1e-08]
[1753344868991,1e-08,3639.8,3639.7,2.77495398]
[1753344869586,1e-08,3639.8,3639.7,3.23455398]
[1753344869900,1e-08,3639.8,3639.7,4.00115398]
[1753344870100,1e-08,3639.8,3639.7,3.97367919]
[1753344870987,1e-08,3639.8,3639.7,4.00115398]
[1753344871898,1e-08,3639.8,3639.7,8.55915398]
[1753344872072,1e-08,3639.8,3639.7,8.53167919]
[1753344874502,1e-08,3639.8,3639.7,2.74747919]
[1753344874704,1e-08,3639.8,3639.7,7.29347919]
[1753344875202,1e-08,3639.8,3639.7,7.75307919]
[1753344875415,1e-08,3639.8,3639.7,3.20707919]
[1753344875577,1e-08,3639.8,3639.7,8.58007919]
[1753344876492,1e-08,3639.8,3639.7,4.03407919]
[1753344876693,1e-08,3639.8,3639.7,8.58107919]
[1753344877917,1e-08,3639.8,3639.7,4.03407919]
[1753344878268,1e-08,3639.8,3639.7,3.57447919]
[1753344878474,1e-08,3639.8,3639.7,7.28747919]
[1753344878987,1e-08,3639.8,3639.7,7.73107919]
[1753344881381,1e-08,3639.8,3639.7,3.19107919]
[1753344881586,1e-08,3639.8,3639.7,7.72907919]
[1753344882010,1e-08,3639.8,3639.7,7.28347919]
[1753344882213,1e-08,3639.8,3639.7,7.28247919]
[1753344882640,1e-08,3639.8,3639.7,2.74747919]
[1753344882924,0.43170001,3639.8,3639.7,1e-08]
[1753344883131,0.43170001,3639.8,3639.7,2.74747919]
[1753344883701,1e-08,3639.8,3639.7,2.74747919]
[1753344883909,1e-08,3639.8,3639.7,2.77495398]
[1753344884124,1e-08,3639.8,3639.7,2.74747919]
[1753344885318,1e-08,3639.8,3639.7,7.27847919]
[1753344885627,1e-08,3639.8,3639.7,7.27747919]
[1753344886717,1e-08,3639.8,3639.7,7.72107919]
[1753344888718,1e-08,3640.9,3640.8,2.74664908]
[1753344888960,1e-08,3640.9,3640.8,7.63911291]
[1753344889226,1e-08,3640.9,3640.8,8.05524642]
[1753344889592,1e-08,3640.9,3640.8,8.19118519]
[1753344889794,1e-08,3640.9,3640.8,8.05524642]
[1753344891093,1e-08,3640.9,3640.8,3.53024642]
[1753344891631,1e-08,3640.9,3640.8,8.05524642]
[1753344892043,1e-08,3641.5,3641.3,2.74627193]
[1753344892361,1e-08,3641.5,3641.4,7.27119651]
[1753344892629,1e-08,3641.5,3641.4,7.40879651]
[1753344892812,1e-08,3641.5,3641.4,7.85239651]
[1753344893851,0.04,3641.9,3641.7,2.74597028]
[1753344894044,1.2288,3641.8,3640.8,6.79839734]
[1753344894350,1.2288,3641.8,3641.7,0.1376]
[1753344894507,0.4317,3641.8,3640.8,6.79839734]
[1753344894839,0.785,3641.2,3640.8,6.596]
[1753344894989,0.785,3641.2,3640.9,7.2705733]
[1753344895193,0.785,3641.2,3641.1,0.1376]
[1753344895422,0.785,3641.2,3641.1,4.6616]
[1753344895648,0.785,3641.2,3641.1,0.1376]
[1753344895814,0.785,3641.2,3641.1,4.6616]
[1753344896197,0.785,3641.2,3641.1,7.40802278]
[1753344896491,0.785,3641.2,3641.1,0.1376]
[1753344896692,3.90914735,3641.2,3641.1,0.1376]
[1753344900437,3.90914735,3641.2,3639.7,1e-08]
[1753344900438,2.74693903,3640.5,3639.7,1e-08]
[1753344900635,0.7831,3640.8,3640.6,2.7467984]
[1753344900841,0.7831,3640.8,3640.7,4.6616]
[1753344901010,0.7831,3640.8,3640.1,4.524]
[1753344901011,0.7857,3640.7,3640.1,4.524]
[1753344901212,3.53257542,3640.5,3640.4,0.1376]
[1753344901545,3.87537542,3640.5,3640.4,0.1376]
[1753344901708,1.1285,3640.5,3640.1,4.524]
[1753344901908,1.1285,3640.5,3640.4,0.1376]
[1753344902710,3.87537542,3640.5,3640.4,0.1376]
[1753344903326,2.7474037,3639.8,3639.7,1e-08]
[1753344903643,0.7857,3639.8,3639.7,1e-08]
[1753344903939,0.7857,3639.8,3639.7,0.13760001]
[1753344903940,3.8759037,3639.8,3639.7,0.13760001]
[1753344904110,2.74785667,3639.2,3638.9,0.1386]
[1753344904300,2.81930769,3639.0,3638.9,0.1386]
[1753344904499,2.81930769,3639.0,3638.5,0.001]
[1753344904500,2.74830978,3638.6,3638.5,0.001]
[1753344904740,2.81960978,3638.6,3638.5,0.001]
[1753344904912,2.98380978,3638.6,3638.5,0.001]
[1753344905326,2.98380978,3638.6,3638.5,1e-08]
[1753344905639,13.81890251,3638.6,3638.5,1e-08]
[1753344905848,2.74936764,3637.2,3637.1,0.04]
[1753344906155,7.83509273,3637.3,3636.1,0.04]
[1753344906332,0.1242,3637.1,3636.1,0.04]
[1753344906562,2.75012375,3636.2,3636.1,0.04]
[1753344906758,2.75012375,3636.2,3635.1,0.04]
[1753344906759,3.50049938,3636.1,3635.1,2.7909498]
[1753344906984,2.7503005,3636.0,3635.1,0.04]
[1753344907274,0.7503,3636.1,3635.8,2.7503691]
[1753344907472,0.7503,3636.1,3636.0,0.1376]
[1753344908308,0.8335,3636.1,3635.1,0.04]
[1753344908516,0.7503,3636.1,3635.2,0.0275088]
[1753344908677,0.8017,3636.5,3636.0,0.1376]
[1753344909000,0.8017,3636.5,3636.4,0.1376]
[1753344909206,0.8849,3636.5,3635.1,0.04]
[1753344909361,0.1376,3636.4,3635.8,0.1376]
[1753344909562,4.6462,3636.3,3635.1,0.04]
[1753344909789,4.6462,3636.3,3635.5,0.1376]
[1753344909790,0.1376,3636.0,3635.5,0.1376]
[1753344909987,0.0832,3635.9,3635.5,0.1376]
[1753344910189,0.8017,3635.6,3635.1,0.04]
[1753344910524,0.8017,3636.0,3635.2,0.0275088]
[1753344910804,0.8017,3636.0,3635.5,2.75057999]
[1753344910962,0.8017,3636.7,3636.3,2.75004042]
[1753344911163,0.8017,3636.7,3635.6,0.4438]
[1753344911364,0.8017,3636.7,3635.2,2.75088028]
[1753344911588,0.8017,3636.7,3635.5,0.7686]
[1753344911774,0.8017,3636.7,3635.6,3.19437762]
[1753344911975,0.8017,3636.7,3636.3,2.7499844]
[1753344912186,0.8017,3636.7,3635.6,0.4438]
[1753344912505,2.75000147,3636.4,3635.5,2.75062286]
[1753344912657,0.8849,3636.7,3635.1,0.04]
[1753344912870,0.8017,3636.7,3636.4,2.74992124]
[1753344913083,0.8017,3636.7,3636.6,2.74982126]
[1753344913313,3.51595401,3637.7,3636.6,2.74982126]
[1753344913521,3.51595401,3637.7,3636.1,0.4438]
[1753344913522,0.7669,3637.7,3636.2,0.02750123]
[1753344913735,0.7669,3637.7,3637.2,2.74936761]
[1753344914042,0.7669,3637.7,3636.6,5.0158]
[1753344914336,0.7669,3637.7,3637.1,2.74939932]
[1753344914480,0.7669,3637.7,3636.6,4.572]
[1753344915181,0.7669,3637.7,3637.6,2.74906531]
[1753344915389,0.04,3637.9,3637.8,2.74891417]
[1753344915779,0.04,3637.9,3637.4,4.582]
[1753344915980,0.04,3637.9,3637.3,2.74929205]
[1753344916192,0.04,3637.9,3637.2,4.582]
[1753344916193,0.04,3637.9,3637.7,2.74895896]
[1753344916410,0.04,3637.9,3637.8,2.74891417]
[1753344916781,0.7931,3639.0,3637.8,5.0248]
[1753344917086,0.7931,3639.0,3638.8,2.74815873]
[1753344917291,0.7987,3639.5,3638.8,2.74815873]
[1753344917523,0.7987,3639.5,3638.8,3.19195873]
[1753344917814,0.04,3639.9,3638.8,3.19195873]
[1753344919197,0.04,3639.9,3638.8,7.32615873]
[1753344919436,0.04,3639.9,3638.8,7.76995873]
[1753344919947,0.04,3639.9,3638.8,3.19195873]
[1753344920302,0.04,3639.9,3638.8,7.90755873]
[1753344920704,2.74748252,3639.7,3638.8,7.90655873]
[1753344920904,0.0832,3639.8,3638.8,4.7136]
[1753344921143,2.7480723,3639.0,3638.2,2.74854328]
[1753344921353,2.74813116,3638.9,3638.3,4.576]
[1753344921506,0.1376,3639.0,3638.5,0.1376]
[1753344921709,2.748337,3638.6,3638.5,0.1376]
[1753344921938,0.7777,3638.2,3638.0,4.578]
[1753344922327,0.7777,3639.1,3638.2,2.74861195]
[1753344922653,2.74800769,3639.0,3638.1,0.1376]
[1753344922945,0.7974,3638.3,3637.6,0.001]
[1753344923117,0.7974,3638.3,3637.8,0.1376]
[1753344923318,0.935,3638.3,3637.8,0.1376]
[1753344923519,2.74874231,3638.1,3637.8,0.1376]
[1753344923723,3.68354215,3638.3,3637.8,0.1376]
[1753344923724,2.74883861,3637.9,3637.8,0.1376]
[1753344923920,2.74876595,3638.0,3637.8,0.1376]
[1753344924110,2.74898974,3637.7,3637.6,0.001]
[1753344924515,2.96978974,3637.7,3637.6,0.001]
[1753344924846,0.7684,3637.8,3637.6,0.001]
[1753344925037,0.7684,3637.8,3637.7,0.1376]
[1753344925712,3.60051417,3637.8,3637.7,0.1376]
[1753344925918,2.74898974,3637.7,3637.6,0.001]
[1753344926814,2.96978974,3637.7,3637.6,0.001]
[1753344927015,2.88658974,3637.7,3637.6,0.001]
[1753344927215,0.796,3637.7,3637.6,0.001]
[1753344928518,0.796,3637.7,3637.6,0.1386]
[1753344928934,3.54498974,3637.7,3637.6,0.1386]
[1753344929138,3.62818974,3637.7,3637.6,0.1386]
[1753344929654,12.51603276,3637.7,3637.6,1e-08]
[1753344929855,4.0208646,3637.7,3637.6,1e-08]
[1753344930164,18.5208646,3637.7,3637.6,1e-08]
[1753344930525,21.5208646,3637.7,3637.6,1e-08]
[1753344930923,22.0708646,3637.7,3637.6,1e-08]
[1753344931169,5.82066764,3637.2,3637.1,0.04]
[1753344931359,10.8073425,3637.2,3637.1,0.04]
[1753344931568,2.82089443,3636.9,3636.8,0.001]
[1753344931740,2.82089443,3636.9,3636.1,0.041]
[1753344931741,2.82142375,3636.2,3636.1,0.041]
[1753344931940,0.0713,3636.2,3635.1,2.79093656]
[1753344932152,5.75050196,3635.7,3635.6,0.1376]
[1753344932368,2.75080461,3635.3,3635.2,0.1376]